[Event "*** MasterClass Titled Tuesday Blitz"]
[Site "Chess.com"]
[Date "2017.08.01"]
[Round "7"]
[White "Bengalas"]
[Black "krzyzan94"]
[Result "0-1"]
[WhiteElo "2469"]
[BlackElo "2542"]
[TimeControl "180+2"]
[EndTime "14:31:49 PDT"]
[Termination "krzyzan94 won by checkmate"]

1. d4 {[%clk 0:02:42.5]} 1... Nf6 {[%clk 0:03:00.8]} 2. c4 {[%clk 0:02:41.4]}
2... e6 {[%clk 0:03:02.2]} 3. Nc3 {[%clk 0:02:41.5]} 3... Bb4 {[%clk 0:03:02.9]}
4. Qc2 {[%clk 0:02:42.2]} 4... O-O {[%clk 0:03:01.4]} 5. Nf3 {[%clk 0:02:42.7]}
5... d5 {[%clk 0:03:01.3]} 6. cxd5 {[%clk 0:02:43.2]} 6... Qxd5 {[%clk
0:03:01.2]} 7. e3 {[%clk 0:02:33.7]} 7... c5 {[%clk 0:03:00.2]} 8. Bd2 {[%clk
0:02:31.7]} 8... Bxc3 {[%clk 0:02:40.5]} 9. Bxc3 {[%clk 0:02:31.1]} 9... cxd4
{[%clk 0:02:40.6]} 10. Bxd4 {[%clk 0:02:29.1]} 10... Nc6 {[%clk 0:02:41.1]} 11.
Bxf6 {[%clk 0:02:28.7]} 11... gxf6 {[%clk 0:02:43]} 12. a3 {[%clk 0:02:24.4]}
12... Kh8 {[%clk 0:02:33.8]} 13. Qc3 {[%clk 0:02:13.3]} 13... e5 {[%clk
0:02:30.5]} 14. Bc4 {[%clk 0:02:11]} 14... Qe4 {[%clk 0:02:30.4]} 15. Rd1 {[%clk
0:01:56]} 15... Rg8 {[%clk 0:02:10.5]} 16. Bd5 {[%clk 0:01:44.7]} 16... Qg6
{[%clk 0:02:08.2]} 17. g3 {[%clk 0:01:38.8]} 17... Bg4 {[%clk 0:02:01.9]} 18.
Nh4 {[%clk 0:01:17.7]} 18... Qh5 {[%clk 0:02:02.5]} 19. f3 {[%clk 0:01:12.8]}
19... Be6 {[%clk 0:01:57.9]} 20. Bxc6 {[%clk 0:01:10.1]} 20... bxc6 {[%clk
0:01:58.2]} 21. Kf2 {[%clk 0:01:11]} 21... Rab8 {[%clk 0:01:54.4]} 22. b4 {[%clk
0:01:11.6]} 22... a5 {[%clk 0:01:50]} 23. Rd2 {[%clk 0:00:56]} 23... axb4 {[%clk
0:01:50.5]} 24. axb4 {[%clk 0:00:57.9]} 24... c5 {[%clk 0:01:46.6]} 25. Qxc5
{[%clk 0:00:45.8]} 25... Qg5 {[%clk 0:01:42.3]} 26. Rhd1 {[%clk 0:00:41.3]}
26... Rgc8 {[%clk 0:01:42.7]} 27. Qe7 {[%clk 0:00:40.5]} 27... Re8 {[%clk
0:01:42]} 28. Rd8 {[%clk 0:00:39.9]} 28... Rbxd8 {[%clk 0:01:32]} 29. Rxd8
{[%clk 0:00:41.4]} 29... Rxd8 {[%clk 0:01:33.7]} 30. Qxd8+ {[%clk 0:00:42.8]}
30... Kg7 {[%clk 0:01:35.6]} 31. Qd6 {[%clk 0:00:36.4]} 31... e4 {[%clk
0:01:20.4]} 32. fxe4 {[%clk 0:00:33.5]} 32... Qb5 {[%clk 0:01:19.5]} 33. Qd4
{[%clk 0:00:32.4]} 33... Qa4 {[%clk 0:01:14.7]} 34. Nf3 {[%clk 0:00:23]} 34...
Qc2+ {[%clk 0:01:09.7]} 35. Qd2 {[%clk 0:00:23]} 35... Qb1 {[%clk 0:01:07.7]}
36. e5 {[%clk 0:00:22.5]} 36... fxe5 {[%clk 0:00:59.4]} 37. Nxe5 {[%clk
0:00:19.3]} 37... Bh3 {[%clk 0:00:58]} 38. Nf3 {[%clk 0:00:19.4]} 38... Qf1#
{[%clk 0:00:57.9]} 0-1

[Event "*** MasterClass Titled Tuesday Blitz"]
[Site "Chess.com"]
[Date "2017.08.01"]
[Round "7"]
[White "Jungle_Jaguar"]
[Black "matej2221"]
[Result "1-0"]
[WhiteElo "2320"]
[BlackElo "2252"]
[TimeControl "180+2"]
[EndTime "14:31:57 PDT"]
[Termination "Jungle_Jaguar won by resignation"]

1. c4 {[%clk 0:03:01.9]} 1... c6 {[%clk 0:02:58.9]} 2. g3 {[%clk 0:03:03.3]}
2... d5 {[%clk 0:02:59.5]} 3. Bg2 {[%clk 0:03:04.9]} 3... Nf6 {[%clk 0:03:00.7]}
4. Nf3 {[%clk 0:03:05.7]} 4... Bf5 {[%clk 0:02:57.3]} 5. O-O {[%clk 0:03:02.9]}
5... e6 {[%clk 0:02:58.4]} 6. b3 {[%clk 0:03:02.9]} 6... Be7 {[%clk 0:02:58.1]}
7. Bb2 {[%clk 0:03:04.1]} 7... Kf8 {[%clk 0:02:59]} 8. d4 {[%clk 0:03:01.5]}
8... g6 {[%clk 0:02:55]} 9. Nbd2 {[%clk 0:02:57]} 9... Ne4 {[%clk 0:02:50.7]}
10. h3 {[%clk 0:02:54.2]} 10... g5 {[%clk 0:02:39.9]} 11. g4 {[%clk 0:02:48.2]}
11... Bg6 {[%clk 0:02:40.7]} 12. Ne5 {[%clk 0:02:49.8]} 12... Nxd2 {[%clk
0:02:35.9]} 13. Qxd2 {[%clk 0:02:51]} 13... Bf6 {[%clk 0:02:29.1]} 14. f4 {[%clk
0:02:46]} 14... gxf4 {[%clk 0:02:12.2]} 15. Nxg6+ {[%clk 0:02:36.7]} 15... fxg6
{[%clk 0:01:57.8]} 16. Qxf4 {[%clk 0:02:38.6]} 16... Kg7 {[%clk 0:01:59]} 17. g5
{[%clk 0:02:29.4]} 17... Bxg5 {[%clk 0:01:56.2]} 18. Qf7+ {[%clk 0:02:29.9]}
18... Kh6 {[%clk 0:01:57.1]} 19. Rf3 {[%clk 0:02:03.7]} 19... Nd7 {[%clk
0:01:41.5]} 20. h4 {[%clk 0:02:04.7]} 20... Bd2 {[%clk 0:01:31]} 21. Rd1 {[%clk
0:01:55.8]} 21... Rf8 {[%clk 0:01:27.7]} 22. Qxe6 {[%clk 0:01:56.3]} 22... Rxf3
{[%clk 0:01:22.7]} 23. exf3 {[%clk 0:01:55.9]} 23... Bf4 {[%clk 0:01:11]} 24.
cxd5 {[%clk 0:01:36.8]} 24... cxd5 {[%clk 0:01:02.9]} 25. Qxd5 {[%clk
0:01:31.1]} 25... Be3+ {[%clk 0:00:59.4]} 26. Kf1 {[%clk 0:01:01.5]} 26... Qxh4
{[%clk 0:00:55.1]} 27. Ke2 {[%clk 0:01:02.9]} 27... Nf6 {[%clk 0:00:17.4]} 28.
Qe5 {[%clk 0:00:44.1]} 28... Re8 {[%clk 0:00:08.9]} 29. Rh1 {[%clk 0:00:44.4]}
29... Qxh1 {[%clk 0:00:04]} 30. Bxh1 {[%clk 0:00:45.3]} 30... Bxd4 {[%clk
0:00:02]} 31. Bxd4 {[%clk 0:00:45.4]} 31... Rxe5+ {[%clk 0:00:03.2]} 32. Bxe5
{[%clk 0:00:47.3]} 1-0

[Event "*** MasterClass Titled Tuesday Blitz"]
[Site "Chess.com"]
[Date "2017.08.01"]
[Round "7"]
[White "prochn"]
[Black "IIIlllII1llIl"]
[Result "0-1"]
[WhiteElo "2284"]
[BlackElo "2624"]
[TimeControl "180+2"]
[EndTime "14:32:04 PDT"]
[Termination "IIIlllII1llIl won by resignation"]

1. d4 {[%clk 0:03:01.9]} 1... c5 {[%clk 0:03:00.5]} 2. d5 {[%clk 0:03:02.8]}
2... e6 {[%clk 0:03:01.3]} 3. c4 {[%clk 0:03:02.2]} 3... exd5 {[%clk 0:03:02.2]}
4. cxd5 {[%clk 0:03:03.2]} 4... d6 {[%clk 0:03:03.6]} 5. Nc3 {[%clk 0:03:03.3]}
5... g6 {[%clk 0:03:03.4]} 6. e4 {[%clk 0:03:00.1]} 6... Bg7 {[%clk 0:03:04.1]}
7. Nf3 {[%clk 0:02:58.8]} 7... a6 {[%clk 0:03:03.9]} 8. a4 {[%clk 0:02:59.3]}
8... Bg4 {[%clk 0:03:04.8]} 9. Be2 {[%clk 0:03:00.3]} 9... Nf6 {[%clk
0:03:05.8]} 10. O-O {[%clk 0:02:56.8]} 10... O-O {[%clk 0:03:06.4]} 11. Bg5
{[%clk 0:02:49.1]} 11... Nbd7 {[%clk 0:02:59.4]} 12. Nd2 {[%clk 0:02:34.2]}
12... Bxe2 {[%clk 0:02:58.1]} 13. Nxe2 {[%clk 0:02:34.6]} 13... b5 {[%clk
0:02:46.7]} 14. Qc2 {[%clk 0:02:31.1]} 14... h6 {[%clk 0:02:12]} 15. Bf4 {[%clk
0:02:31.3]} 15... Qe7 {[%clk 0:02:11.5]} 16. axb5 {[%clk 0:02:25.6]} 16... axb5
{[%clk 0:02:13.4]} 17. Nc3 {[%clk 0:02:26.7]} 17... Nh5 {[%clk 0:02:05.5]} 18.
Be3 {[%clk 0:01:58.4]} 18... b4 {[%clk 0:01:58.7]} 19. Nb5 {[%clk 0:01:44.8]}
19... Ne5 {[%clk 0:01:58.7]} 20. Nxd6 {[%clk 0:01:35.4]} 20... Rxa1 {[%clk
0:01:37.6]} 21. Rxa1 {[%clk 0:01:34.7]} 21... Qxd6 {[%clk 0:01:38.3]} 22. Qxc5
{[%clk 0:01:34.1]} 22... Qb8 {[%clk 0:01:09.5]} 23. Ra7 {[%clk 0:00:45.3]} 23...
Ng4 {[%clk 0:01:02.6]} 24. d6 {[%clk 0:00:35.4]} 24... Rc8 {[%clk 0:00:23.7]}
25. Rc7 {[%clk 0:00:35.5]} 25... Rd8 {[%clk 0:00:20.5]} 26. Bd4 {[%clk 0:00:27]}
26... Bxd4 {[%clk 0:00:18.2]} 27. Qxd4 {[%clk 0:00:28.2]} 27... Ng7 {[%clk
0:00:19.3]} 28. Qc4 {[%clk 0:00:17.2]} 28... Ne6 {[%clk 0:00:15.8]} 29. f4
{[%clk 0:00:13.8]} 29... Qb6+ {[%clk 0:00:12.5]} 0-1

[Event "*** MasterClass Titled Tuesday Blitz"]
[Site "Chess.com"]
[Date "2017.08.01"]
[Round "7"]
[White "ehrenfeld"]
[Black "Muracle"]
[Result "1-0"]
[WhiteElo "2411"]
[BlackElo "2422"]
[TimeControl "180+2"]
[EndTime "14:32:15 PDT"]
[Termination "ehrenfeld won by resignation"]

1. e4 {[%clk 0:03:01.9]} 1... c5 {[%clk 0:03:00.4]} 2. Nf3 {[%clk 0:03:02]} 2...
Nc6 {[%clk 0:03:01]} 3. Bb5 {[%clk 0:03:02.8]} 3... Nf6 {[%clk 0:03:01.3]} 4.
Bxc6 {[%clk 0:03:02.2]} 4... dxc6 {[%clk 0:03:02]} 5. d3 {[%clk 0:03:03]} 5...
Bg4 {[%clk 0:03:01.5]} 6. Nbd2 {[%clk 0:03:02.1]} 6... Qc7 {[%clk 0:03:02.1]} 7.
h3 {[%clk 0:03:00.5]} 7... Bh5 {[%clk 0:03:02.5]} 8. Nf1 {[%clk 0:02:58.4]} 8...
e5 {[%clk 0:03:00.2]} 9. Ng3 {[%clk 0:02:58.5]} 9... Bg6 {[%clk 0:02:59.9]} 10.
Nh4 {[%clk 0:02:55.7]} 10... O-O-O {[%clk 0:02:58.5]} 11. Qe2 {[%clk 0:02:56]}
11... Nd7 {[%clk 0:02:58.5]} 12. Nhf5 {[%clk 0:02:54.7]} 12... f6 {[%clk
0:02:52.6]} 13. Bd2 {[%clk 0:02:53.4]} 13... Bf7 {[%clk 0:02:52.9]} 14. O-O
{[%clk 0:02:51.2]} 14... g6 {[%clk 0:02:53.8]} 15. Ne3 {[%clk 0:02:50.5]} 15...
Be7 {[%clk 0:02:54.3]} 16. Nc4 {[%clk 0:02:48.3]} 16... Nf8 {[%clk 0:02:54.7]}
17. f4 {[%clk 0:02:48.7]} 17... Ne6 {[%clk 0:02:25.3]} 18. fxe5 {[%clk
0:02:45.2]} 18... Nd4 {[%clk 0:02:26.1]} 19. Qd1 {[%clk 0:02:41.2]} 19... Bxc4
{[%clk 0:02:26.6]} 20. dxc4 {[%clk 0:02:39.3]} 20... Qxe5 {[%clk 0:02:27]} 21.
Bf4 {[%clk 0:02:36.7]} 21... Qe6 {[%clk 0:02:27.8]} 22. c3 {[%clk 0:02:31]}
22... g5 {[%clk 0:02:13]} 23. cxd4 {[%clk 0:01:45]} 23... gxf4 {[%clk 0:02:12]}
24. d5 {[%clk 0:01:44.9]} 24... Qe5 {[%clk 0:02:02.7]} 25. Qg4+ {[%clk
0:01:44.7]} 25... Kb8 {[%clk 0:02:00.3]} 26. Qxf4 {[%clk 0:01:43.4]} 26... Bd6
{[%clk 0:01:53.7]} 27. Qxe5 {[%clk 0:01:42.1]} 27... Bxe5 {[%clk 0:01:55]} 28.
Nf5 {[%clk 0:01:43.2]} 28... Bxb2 {[%clk 0:01:50.8]} 29. Rab1 {[%clk 0:01:43.5]}
29... Be5 {[%clk 0:01:51.1]} 30. dxc6 {[%clk 0:01:42.5]} 30... b6 {[%clk
0:01:49.6]} 31. Rbd1 {[%clk 0:01:42.2]} 31... Kc7 {[%clk 0:01:49.8]} 32. Rd5
{[%clk 0:01:43.2]} 32... Kxc6 {[%clk 0:01:46.2]} 33. Rfd1 {[%clk 0:01:43.3]}
33... Rxd5 {[%clk 0:01:47.3]} 34. exd5+ {[%clk 0:01:39.6]} 34... Kd7 {[%clk
0:01:46.8]} 35. Kf2 {[%clk 0:01:37.9]} 35... Rg8 {[%clk 0:01:46.7]} 36. Kf3
{[%clk 0:01:34.5]} 36... h5 {[%clk 0:01:31.4]} 37. Re1 {[%clk 0:01:16.5]} 37...
Rb8 {[%clk 0:01:10.4]} 38. a4 {[%clk 0:01:14]} 38... Rg8 {[%clk 0:01:07.2]} 39.
Rb1 {[%clk 0:01:11.8]} 39... Kc7 {[%clk 0:01:01.3]} 40. Rg1 {[%clk 0:01:03.4]}
40... Kd7 {[%clk 0:00:58.3]} 41. g4 {[%clk 0:01:03]} 41... hxg4+ {[%clk
0:00:58.7]} 42. Rxg4 {[%clk 0:01:03.8]} 42... Rh8 {[%clk 0:00:59.1]} 43. h4
{[%clk 0:01:04.5]} 43... Rh7 {[%clk 0:00:57.8]} 44. Ke4 {[%clk 0:01:01]} 44...
a6 {[%clk 0:00:41.6]} 45. Rg7+ {[%clk 0:00:57.4]} 45... Rxg7 {[%clk 0:00:40.5]}
46. Nxg7 {[%clk 0:00:58.6]} 46... Ke7 {[%clk 0:00:42.4]} 47. Nf5+ {[%clk
0:00:59.3]} 47... Kf7 {[%clk 0:00:42.5]} 48. h5 {[%clk 0:01:00]} 48... Bc3
{[%clk 0:00:41.2]} 49. d6 {[%clk 0:00:59.6]} 1-0

[Event "*** MasterClass Titled Tuesday Blitz"]
[Site "Chess.com"]
[Date "2017.08.01"]
[Round "7"]
[White "Blitzking4444"]
[Black "toad"]
[Result "0-1"]
[WhiteElo "2140"]
[BlackElo "2110"]
[TimeControl "180+2"]
[EndTime "14:32:23 PDT"]
[Termination "toad won by checkmate"]

1. e4 {[%clk 0:03:01.9]} 1... c5 {[%clk 0:03:01.1]} 2. Nf3 {[%clk 0:03:02.6]}
2... d6 {[%clk 0:03:02.4]} 3. d4 {[%clk 0:03:03.2]} 3... cxd4 {[%clk 0:03:04.3]}
4. Nxd4 {[%clk 0:03:04.8]} 4... Nf6 {[%clk 0:03:05.7]} 5. Nc3 {[%clk 0:03:05.5]}
5... a6 {[%clk 0:03:07.1]} 6. Be2 {[%clk 0:03:06.3]} 6... e6 {[%clk 0:03:07.9]}
7. f4 {[%clk 0:03:05.1]} 7... e5 {[%clk 0:03:05.5]} 8. Nf5 {[%clk 0:03:01]} 8...
Bxf5 {[%clk 0:03:06.1]} 9. exf5 {[%clk 0:03:02.4]} 9... Nc6 {[%clk 0:03:06.6]}
10. Bf3 {[%clk 0:02:59.9]} 10... Qc7 {[%clk 0:02:30.7]} 11. g4 {[%clk
0:02:19.3]} 11... Nd4 {[%clk 0:01:32.9]} 12. Bg2 {[%clk 0:02:17.2]} 12... h5
{[%clk 0:01:14.6]} 13. g5 {[%clk 0:02:03.6]} 13... Nd7 {[%clk 0:00:52.3]} 14.
Be3 {[%clk 0:01:49.3]} 14... Nxf5 {[%clk 0:00:50.8]} 15. Qd2 {[%clk 0:01:27.5]}
15... Rc8 {[%clk 0:00:24.8]} 16. O-O-O {[%clk 0:01:21.1]} 16... Be7 {[%clk
0:00:24.4]} 17. Bf2 {[%clk 0:01:08.2]} 17... O-O {[%clk 0:00:22.7]} 18. Bh3
{[%clk 0:00:50.3]} 18... Nd4 {[%clk 0:00:19.4]} 19. Bxd4 {[%clk 0:00:48.5]}
19... exd4 {[%clk 0:00:21.3]} 20. Nd5 {[%clk 0:00:49.2]} 20... Qd8 {[%clk
0:00:21.9]} 21. Bxd7 {[%clk 0:00:26.3]} 21... Qxd7 {[%clk 0:00:22.9]} 22. Nb6
{[%clk 0:00:27.9]} 22... Qe6 {[%clk 0:00:18.2]} 23. Nxc8 {[%clk 0:00:29.8]}
23... Rxc8 {[%clk 0:00:19.6]} 24. Qe1 {[%clk 0:00:16.3]} 24... Qxa2 {[%clk
0:00:12.9]} 25. Qxe7 {[%clk 0:00:17]} 25... Qa1+ {[%clk 0:00:14.1]} 26. Kd2
{[%clk 0:00:18.4]} 26... Qxb2 {[%clk 0:00:15.6]} 27. Rc1 {[%clk 0:00:15.5]}
27... d3 {[%clk 0:00:10.5]} 28. Kxd3 {[%clk 0:00:10.6]} 28... Rc3+ {[%clk
0:00:07.8]} 29. Ke4 {[%clk 0:00:11.9]} 29... Qb4+ {[%clk 0:00:08.7]} 30. Kf5
{[%clk 0:00:07.4]} 30... g6+ {[%clk 0:00:09.6]} 31. Kf6 {[%clk 0:00:08.1]} 31...
Qd4+ {[%clk 0:00:09.2]} 32. Qe5 {[%clk 0:00:07.8]} 32... dxe5 {[%clk 0:00:10.4]}
33. fxe5 {[%clk 0:00:09.2]} 33... Rc6+ {[%clk 0:00:11.3]} 34. Ke7 {[%clk
0:00:10.6]} 34... Re6# {[%clk 0:00:11.1]} 0-1

[Event "*** MasterClass Titled Tuesday Blitz"]
[Site "Chess.com"]
[Date "2017.08.01"]
[Round "7"]
[White "AlexanderKing"]
[Black "Caisachess"]
[Result "1-0"]
[WhiteElo "2435"]
[BlackElo "2247"]
[TimeControl "180+2"]
[EndTime "14:33:07 PDT"]
[Termination "AlexanderKing won by resignation"]

1. d4 {[%clk 0:03:01.9]} 1... Nf6 {[%clk 0:03:00.3]} 2. c4 {[%clk 0:03:03.2]}
2... e6 {[%clk 0:03:01.6]} 3. Nc3 {[%clk 0:03:03.6]} 3... Bb4 {[%clk 0:03:02.7]}
4. e3 {[%clk 0:03:04.7]} 4... O-O {[%clk 0:03:01.6]} 5. Bd3 {[%clk 0:03:04.3]}
5... Bxc3+ {[%clk 0:03:01.8]} 6. bxc3 {[%clk 0:03:04.2]} 6... d5 {[%clk
0:03:03.4]} 7. Nf3 {[%clk 0:02:55]} 7... b6 {[%clk 0:03:01.9]} 8. O-O {[%clk
0:02:49.2]} 8... Ba6 {[%clk 0:02:59.9]} 9. cxd5 {[%clk 0:02:49]} 9... Bxd3
{[%clk 0:03:00.5]} 10. Qxd3 {[%clk 0:02:50.9]} 10... exd5 {[%clk 0:03:01.9]} 11.
c4 {[%clk 0:02:44.1]} 11... dxc4 {[%clk 0:03:00.9]} 12. Qxc4 {[%clk 0:02:46]}
12... Nbd7 {[%clk 0:02:55.5]} 13. Bb2 {[%clk 0:02:41.3]} 13... Re8 {[%clk
0:02:52.9]} 14. Rac1 {[%clk 0:02:38.1]} 14... c5 {[%clk 0:02:51.2]} 15. dxc5
{[%clk 0:02:33.8]} 15... Nxc5 {[%clk 0:02:51.7]} 16. Rfd1 {[%clk 0:02:33.1]}
16... Qe7 {[%clk 0:02:51.7]} 17. Nd4 {[%clk 0:02:22.4]} 17... Qe4 {[%clk
0:02:44.3]} 18. Nb5 {[%clk 0:02:15.7]} 18... Qxc4 {[%clk 0:02:28.2]} 19. Rxc4
{[%clk 0:02:17.6]} 19... Rad8 {[%clk 0:02:29.1]} 20. Rcd4 {[%clk 0:02:03.4]}
20... Rxd4 {[%clk 0:02:27.9]} 21. Rxd4 {[%clk 0:02:01.1]} 21... a6 {[%clk
0:02:20.7]} 22. Nc7 {[%clk 0:01:58.9]} 22... Rc8 {[%clk 0:02:20]} 23. Nxa6
{[%clk 0:01:55.9]} 23... Nxa6 {[%clk 0:02:18.7]} 24. Rd6 {[%clk 0:01:46.4]}
24... Rb8 {[%clk 0:02:06.8]} 25. Bxf6 {[%clk 0:01:18.3]} 25... gxf6 {[%clk
0:02:07]} 26. Rxf6 {[%clk 0:01:20.2]} 26... Nb4 {[%clk 0:02:06.8]} 27. a4 {[%clk
0:01:14.2]} 27... Kf8 {[%clk 0:02:02.8]} 28. g4 {[%clk 0:01:11.3]} 28... Ke7
{[%clk 0:02:03.5]} 29. Rh6 {[%clk 0:01:12]} 29... Nd5 {[%clk 0:01:50.2]} 30. g5
{[%clk 0:00:40.9]} 30... Nc3 {[%clk 0:01:40.7]} 31. Rxh7 {[%clk 0:00:33.8]}
31... Nxa4 {[%clk 0:01:41.3]} 32. g6 {[%clk 0:00:34.5]} 32... Rg8 {[%clk
0:01:42.4]} 33. Rxf7+ {[%clk 0:00:34.7]} 33... Ke6 {[%clk 0:01:43.9]} 34. Rb7
{[%clk 0:00:24.1]} 34... Rxg6+ {[%clk 0:01:44.5]} 35. Kf1 {[%clk 0:00:25.7]}
35... Kd5 {[%clk 0:01:46.1]} 36. f4 {[%clk 0:00:23.1]} 36... Ke4 {[%clk
0:01:46.9]} 37. Kf2 {[%clk 0:00:24]} 37... Rc6 {[%clk 0:01:44.7]} 38. Re7+
{[%clk 0:00:23.5]} 38... Kf5 {[%clk 0:01:45.4]} 39. Kf3 {[%clk 0:00:21.3]} 39...
Nc3 {[%clk 0:01:44.6]} 40. h4 {[%clk 0:00:09]} 40... b5 {[%clk 0:01:44.1]} 41.
h5 {[%clk 0:00:03.7]} 41... b4 {[%clk 0:01:44.4]} 42. Rb7 {[%clk 0:00:03.3]}
42... Rh6 {[%clk 0:01:30.1]} 43. Rxb4 {[%clk 0:00:02.7]} 43... Rxh5 {[%clk
0:01:31.4]} 44. e4+ {[%clk 0:00:04.1]} 44... Nxe4 {[%clk 0:01:30.9]} 45. Rb5+
{[%clk 0:00:02.7]} 45... Kg6 {[%clk 0:01:29.9]} 46. Rxh5 {[%clk 0:00:03.6]}
46... Nd2+ {[%clk 0:01:27.5]} 47. Kg4 {[%clk 0:00:04]} 47... Ne4 {[%clk
0:01:25.9]} 48. f5+ {[%clk 0:00:03.9]} 48... Kg7 {[%clk 0:01:25.8]} 49. Rh2
{[%clk 0:00:03.4]} 49... Nf6+ {[%clk 0:01:27]} 50. Kg5 {[%clk 0:00:04.6]} 50...
Ne4+ {[%clk 0:01:27.9]} 51. Kf4 {[%clk 0:00:06.1]} 51... Nf6 {[%clk 0:01:29]}
52. Ra2 {[%clk 0:00:06.5]} 52... Nd5+ {[%clk 0:01:28.9]} 53. Kg5 {[%clk
0:00:05]} 53... Nc3 {[%clk 0:01:25.8]} 54. Ra7+ {[%clk 0:00:05.6]} 54... Kf8
{[%clk 0:01:27.2]} 55. Kg6 {[%clk 0:00:05.7]} 55... Ne4 {[%clk 0:01:28.5]} 56.
f6 {[%clk 0:00:06.1]} 56... Ke8 {[%clk 0:01:27.7]} 57. f7+ {[%clk 0:00:05.7]}
57... Kf8 {[%clk 0:01:28.6]} 58. Ra8+ {[%clk 0:00:06.7]} 58... Ke7 {[%clk
0:01:29.5]} 59. f8=Q+ {[%clk 0:00:08.6]} 59... Ke6 {[%clk 0:01:30.7]} 60. Qf5+
{[%clk 0:00:08.4]} 1-0

[Event "*** MasterClass Titled Tuesday Blitz"]
[Site "Chess.com"]
[Date "2017.08.01"]
[Round "7"]
[White "stepanosinovsky"]
[Black "Jahonas"]
[Result "1-0"]
[WhiteElo "2286"]
[BlackElo "2189"]
[TimeControl "180+2"]
[EndTime "14:33:12 PDT"]
[Termination "stepanosinovsky won by resignation"]

1. e4 {[%clk 0:03:01.9]} 1... c6 {[%clk 0:03:00.4]} 2. d3 {[%clk 0:03:02]} 2...
d5 {[%clk 0:03:01.5]} 3. Nd2 {[%clk 0:03:03.9]} 3... dxe4 {[%clk 0:03:02.5]} 4.
dxe4 {[%clk 0:03:05.8]} 4... e5 {[%clk 0:03:03.5]} 5. Ngf3 {[%clk 0:03:07.1]}
5... Qc7 {[%clk 0:03:04]} 6. Nc4 {[%clk 0:02:45.2]} 6... f6 {[%clk 0:02:52.2]}
7. Ne3 {[%clk 0:02:41.7]} 7... Be6 {[%clk 0:02:49.3]} 8. Bc4 {[%clk 0:02:30.4]}
8... Bxc4 {[%clk 0:02:46.9]} 9. Nxc4 {[%clk 0:02:32.3]} 9... Nd7 {[%clk
0:02:45.2]} 10. O-O {[%clk 0:02:32.3]} 10... b5 {[%clk 0:02:41.4]} 11. Ne3
{[%clk 0:02:32.9]} 11... Ne7 {[%clk 0:02:40.7]} 12. a4 {[%clk 0:02:33.2]} 12...
b4 {[%clk 0:02:36.8]} 13. Nh4 {[%clk 0:02:27.7]} 13... g6 {[%clk 0:02:32.8]} 14.
Nc4 {[%clk 0:02:22.8]} 14... Nc8 {[%clk 0:02:29.7]} 15. Qg4 {[%clk 0:02:22.4]}
15... Kf7 {[%clk 0:02:17.8]} 16. f4 {[%clk 0:02:18.4]} 16... Bc5+ {[%clk
0:02:18.2]} 17. Kh1 {[%clk 0:02:18.7]} 17... Ncb6 {[%clk 0:02:10.1]} 18. Nxe5+
{[%clk 0:01:34.1]} 18... Nxe5 {[%clk 0:02:06.6]} 19. fxe5 {[%clk 0:01:35.2]}
19... Qxe5 {[%clk 0:02:05.2]} 20. Bf4 {[%clk 0:01:34.4]} 20... Qe6 {[%clk
0:02:05.5]} 21. Nf5 {[%clk 0:01:28.1]} 21... h5 {[%clk 0:01:54.6]} 22. Nh6+
{[%clk 0:01:20.6]} 22... Rxh6 {[%clk 0:01:51.4]} 23. Qxe6+ {[%clk 0:01:21.3]}
23... Kxe6 {[%clk 0:01:51.3]} 24. Bxh6 {[%clk 0:01:23.2]} 24... Bd4 {[%clk
0:01:43]} 25. c3 {[%clk 0:01:05.7]} 25... bxc3 {[%clk 0:01:40]} 26. bxc3 {[%clk
0:01:06.6]} 26... Bxc3 {[%clk 0:01:29.4]} 27. Rac1 {[%clk 0:01:06.6]} 27... Nxa4
{[%clk 0:01:29.1]} 28. Rf3 {[%clk 0:01:01.8]} 28... Rd8 {[%clk 0:01:18.5]} 29.
h4 {[%clk 0:00:59.4]} 29... Be5 {[%clk 0:01:12.3]} 30. Rxc6+ {[%clk 0:00:56.1]}
30... Rd6 {[%clk 0:01:13.1]} 31. Rxd6+ {[%clk 0:00:52.6]} 31... Kxd6 {[%clk
0:01:12.1]} 32. Ra3 {[%clk 0:00:51.8]} 32... Nc3 {[%clk 0:01:06.7]} 33. Bf8+
{[%clk 0:00:20.8]} 33... Kc6 {[%clk 0:01:06]} 34. Rxa7 {[%clk 0:00:21.3]} 34...
Nxe4 {[%clk 0:01:06.2]} 35. Bg7 {[%clk 0:00:22.3]} 35... Ng3+ {[%clk 0:01:03.7]}
36. Kh2 {[%clk 0:00:23.5]} 36... Nf1+ {[%clk 0:01:04.4]} 37. Kh3 {[%clk
0:00:24.1]} 37... Kd5 {[%clk 0:00:56.3]} 38. Ra6 {[%clk 0:00:24.3]} 38... Ke4
{[%clk 0:00:20.5]} 39. Bxf6 {[%clk 0:00:24]} 39... Bf4 {[%clk 0:00:21.1]} 40.
Bg5 {[%clk 0:00:16.7]} 40... Be5 {[%clk 0:00:20.9]} 41. Rxg6 {[%clk 0:00:15.2]}
41... Nh2 {[%clk 0:00:18.4]} 42. Rh6 {[%clk 0:00:14.5]} 42... Ng4 {[%clk
0:00:19.5]} 43. g3 {[%clk 0:00:14.6]} 43... Nf2+ {[%clk 0:00:16.2]} 44. Kg2
{[%clk 0:00:15.3]} 1-0